{"text_format":"3","workbook":"xlsx","n_sheets":3,"sheets":["Journal de kilométrage","Données du journal","Calculs"],"not_rendered":{"charts":1,"defined_names":17},"read":"whole","date_system":"1900"}

{"sheet":"Journal de kilométrage","index":0,"n_rows":29,"n_cols":5,"rows_kept":29,"merged":[[0,1,1,4]]}
[null,"JOURNAL DE KILOMÉTRAGE"]
{"$rows_empty":9}
[null,null,"REMBOURSABLE",null,"TOTAL"]
[null,null,"KILOMÈTRES",null,"REMBOURSEMENT"]
[]
[]
[]
[]
[null,null,"2012-05-01",null,"2012-05-10"]
[]
[null,null,"PÉRIODE",null,"PÉRIODE"]
[null,null,"DÉBUT",null,"FIN"]
[]
[]
[]
[]
[]
[null,null,54,null,{"v":9800,"d":"9,800"}]
[]
[null,null,"REMBOURSEMENT",null,"CARBURANT PRÉCÉDENT"]
[null,null,"centime(s) par kilomètre",null,"KILOMÉTRAGE"]

{"sheet":"Données du journal","index":1,"n_rows":19,"n_cols":15,"rows_kept":19,"merged":[[0,1,1,4]]}
[null,"JOURNAL DE KILOMÉTRAGE"]
[{"$nulls":14}," "]
[]
[]
[null,"DATE","ACTIVITÉ","KILOMÉTRAGE 1","LIEU","KILOMÉTRAGE 2","DESTINATION","REMBOURSER","LITRES","COÛT","KILOMÈTRES","litre(s) aux 100","centime(s) par kilomètre","NOTES"]
[null,"2012-05-01","Voyage",{"v":10123,"d":"10,123"},"Esso - rue Belleville",{"v":10130,"d":"10,130"},null,null,15.56,{"v":64.11,"d":"64.11 €"},{"$f":"Kilomètres","v":7},{"$f":"IF(OR(LEN(Données[[#This Row],[KILOMÉTRAGE 2]]),Données[[#This Row],[KILOMÉTRAGE 1]]=\"\"),\"\",IFERROR(Données[[#This Row],[KILOMÈTRES]]/Données[[#This Row],[LITRES]],\"\"))","v":""},{"$f":"IF(Données[[#This Row],[litre(s) aux 100]]=\"\",\"\",100*Données[[#This Row],[COÛT]]/Données[[#This Row],[KILOMÈTRES]])","v":""}]
[null,"2012-05-01","Voyage",{"v":10130,"d":"10,130"},"Bureau",{"v":10200,"d":"10,200"},"Rue Jasmin","Oui",null,"",{"$f":"Kilomètres","v":70},{"$f":"IF(OR(LEN(Données[[#This Row],[KILOMÉTRAGE 2]]),Données[[#This Row],[KILOMÉTRAGE 1]]=\"\"),\"\",IFERROR(Données[[#This Row],[KILOMÈTRES]]/Données[[#This Row],[LITRES]],\"\"))","v":""},{"$f":"IF(Données[[#This Row],[litre(s) aux 100]]=\"\",\"\",100*Données[[#This Row],[COÛT]]/Données[[#This Row],[KILOMÈTRES]])","v":""}]
[null,"2012-05-01","Voyage",{"v":10200,"d":"10,200"},"Bordeaux",{"v":10285,"d":"10,285"},"Bureau","Oui",null,"",{"$f":"Kilomètres","v":85},{"$f":"IF(OR(LEN(Données[[#This Row],[KILOMÉTRAGE 2]]),Données[[#This Row],[KILOMÉTRAGE 1]]=\"\"),\"\",IFERROR(Données[[#This Row],[KILOMÈTRES]]/Données[[#This Row],[LITRES]],\"\"))","v":""},{"$f":"IF(Données[[#This Row],[litre(s) aux 100]]=\"\",\"\",100*Données[[#This Row],[COÛT]]/Données[[#This Row],[KILOMÈTRES]])","v":""}]
[null,"2012-05-02","Voyage",{"v":10285,"d":"10,285"},"Bureau",{"v":10450,"d":"10,450"},"Colo Vineyard","Oui",null,"",{"$f":"Kilomètres","v":165},{"$f":"IF(OR(LEN(Données[[#This Row],[KILOMÉTRAGE 2]]),Données[[#This Row],[KILOMÉTRAGE 1]]=\"\"),\"\",IFERROR(Données[[#This Row],[KILOMÈTRES]]/Données[[#This Row],[LITRES]],\"\"))","v":""},{"$f":"IF(Données[[#This Row],[litre(s) aux 100]]=\"\",\"\",100*Données[[#This Row],[COÛT]]/Données[[#This Row],[KILOMÈTRES]])","v":""}]
[null,"2012-05-02","Carburant",{"v":10450,"d":"10,450"},"Shell",{"$nulls":3},{"v":11.2,"d":"11.20"},{"v":55.42,"d":"55.42 €"},{"$f":"Kilomètres","v":650},{"$f":"IF(OR(LEN(Données[[#This Row],[KILOMÉTRAGE 2]]),Données[[#This Row],[KILOMÉTRAGE 1]]=\"\"),\"\",IFERROR(Données[[#This Row],[KILOMÈTRES]]/Données[[#This Row],[LITRES]],\"\"))","v":{"v":58.03571428571429,"d":"58.0"}},{"$f":"IF(Données[[#This Row],[litre(s) aux 100]]=\"\",\"\",100*Données[[#This Row],[COÛT]]/Données[[#This Row],[KILOMÈTRES]])","v":{"v":8.526153846153846,"d":"8.5"}}]
[null,"2012-05-02","Voyage",{"v":10500,"d":"10,500"},"Colo Vineyard",{"v":10518,"d":"10,518"},"Bureau","Oui",null,"",{"$f":"Kilomètres","v":18},{"$f":"IF(OR(LEN(Données[[#This Row],[KILOMÉTRAGE 2]]),Données[[#This Row],[KILOMÉTRAGE 1]]=\"\"),\"\",IFERROR(Données[[#This Row],[KILOMÈTRES]]/Données[[#This Row],[LITRES]],\"\"))","v":""},{"$f":"IF(Données[[#This Row],[litre(s) aux 100]]=\"\",\"\",100*Données[[#This Row],[COÛT]]/Données[[#This Row],[KILOMÈTRES]])","v":""}]
[null,"2012-05-03","Voyage",{"v":10518,"d":"10,518"},"Bureau",{"v":10745,"d":"10,745"},"Bureau","Oui",null,"",{"$f":"Kilomètres","v":227},{"$f":"IF(OR(LEN(Données[[#This Row],[KILOMÉTRAGE 2]]),Données[[#This Row],[KILOMÉTRAGE 1]]=\"\"),\"\",IFERROR(Données[[#This Row],[KILOMÈTRES]]/Données[[#This Row],[LITRES]],\"\"))","v":""},{"$f":"IF(Données[[#This Row],[litre(s) aux 100]]=\"\",\"\",100*Données[[#This Row],[COÛT]]/Données[[#This Row],[KILOMÈTRES]])","v":""}]
[null,"2012-05-04","Carburant",{"v":10745,"d":"10,745"},"Esso - rue Belleville",{"$nulls":3},{"v":16.6,"d":"16.60"},{"v":69.24,"d":"69.24 €"},{"$f":"Kilomètres","v":295},{"$f":"IF(OR(LEN(Données[[#This Row],[KILOMÉTRAGE 2]]),Données[[#This Row],[KILOMÉTRAGE 1]]=\"\"),\"\",IFERROR(Données[[#This Row],[KILOMÈTRES]]/Données[[#This Row],[LITRES]],\"\"))","v":{"v":17.771084337349397,"d":"17.8"}},{"$f":"IF(Données[[#This Row],[litre(s) aux 100]]=\"\",\"\",100*Données[[#This Row],[COÛT]]/Données[[#This Row],[KILOMÈTRES]])","v":{"v":23.471186440677965,"d":"23.5"}}]
[null,"2012-05-04","Voyage",{"v":10745,"d":"10,745"},"Bureau",{"v":10800,"d":"10,800"},"Toulouse","Oui",null,"",{"$f":"Kilomètres","v":55},{"$f":"IF(OR(LEN(Données[[#This Row],[KILOMÉTRAGE 2]]),Données[[#This Row],[KILOMÉTRAGE 1]]=\"\"),\"\",IFERROR(Données[[#This Row],[KILOMÈTRES]]/Données[[#This Row],[LITRES]],\"\"))","v":""},{"$f":"IF(Données[[#This Row],[litre(s) aux 100]]=\"\",\"\",100*Données[[#This Row],[COÛT]]/Données[[#This Row],[KILOMÈTRES]])","v":""}]
[null,"2012-05-04","Voyage",{"v":10800,"d":"10,800"},"Toulouse",{"v":10875,"d":"10,875"},"Bureau","Oui",null,"",{"$f":"Kilomètres","v":75},{"$f":"IF(OR(LEN(Données[[#This Row],[KILOMÉTRAGE 2]]),Données[[#This Row],[KILOMÉTRAGE 1]]=\"\"),\"\",IFERROR(Données[[#This Row],[KILOMÈTRES]]/Données[[#This Row],[LITRES]],\"\"))","v":""},{"$f":"IF(Données[[#This Row],[litre(s) aux 100]]=\"\",\"\",100*Données[[#This Row],[COÛT]]/Données[[#This Row],[KILOMÈTRES]])","v":""}]
[null,"2012-05-07","Voyage",{"v":10875,"d":"10,875"},"Bureau",{"v":10921,"d":"10,921"},"Rue Jasmin","Oui",null,"",{"$f":"Kilomètres","v":46},{"$f":"IF(OR(LEN(Données[[#This Row],[KILOMÉTRAGE 2]]),Données[[#This Row],[KILOMÉTRAGE 1]]=\"\"),\"\",IFERROR(Données[[#This Row],[KILOMÈTRES]]/Données[[#This Row],[LITRES]],\"\"))","v":""},{"$f":"IF(Données[[#This Row],[litre(s) aux 100]]=\"\",\"\",100*Données[[#This Row],[COÛT]]/Données[[#This Row],[KILOMÈTRES]])","v":""}]
[null,"2012-05-07","Voyage",{"v":10921,"d":"10,921"},"Bordeaux",{"v":10969,"d":"10,969"},"Bureau","Oui",null,"",{"$f":"Kilomètres","v":48},{"$f":"IF(OR(LEN(Données[[#This Row],[KILOMÉTRAGE 2]]),Données[[#This Row],[KILOMÉTRAGE 1]]=\"\"),\"\",IFERROR(Données[[#This Row],[KILOMÈTRES]]/Données[[#This Row],[LITRES]],\"\"))","v":""},{"$f":"IF(Données[[#This Row],[litre(s) aux 100]]=\"\",\"\",100*Données[[#This Row],[COÛT]]/Données[[#This Row],[KILOMÈTRES]])","v":""}]
[null,"2012-05-09","Voyage",{"v":10969,"d":"10,969"},"Bureau",{"v":11000,"d":"11,000"},"Marseille","Oui",null,"",{"$f":"Kilomètres","v":31},{"$f":"IF(OR(LEN(Données[[#This Row],[KILOMÉTRAGE 2]]),Données[[#This Row],[KILOMÉTRAGE 1]]=\"\"),\"\",IFERROR(Données[[#This Row],[KILOMÈTRES]]/Données[[#This Row],[LITRES]],\"\"))","v":""},{"$f":"IF(Données[[#This Row],[litre(s) aux 100]]=\"\",\"\",100*Données[[#This Row],[COÛT]]/Données[[#This Row],[KILOMÈTRES]])","v":""}]
[null,"2012-05-09","Voyage",{"v":11000,"d":"11,000"},"Marseille",{"v":11100,"d":"11,100"},"Domicile","Non",null,"",{"$f":"Kilomètres","v":100},{"$f":"IF(OR(LEN(Données[[#This Row],[KILOMÉTRAGE 2]]),Données[[#This Row],[KILOMÉTRAGE 1]]=\"\"),\"\",IFERROR(Données[[#This Row],[KILOMÈTRES]]/Données[[#This Row],[LITRES]],\"\"))","v":""},{"$f":"IF(Données[[#This Row],[litre(s) aux 100]]=\"\",\"\",100*Données[[#This Row],[COÛT]]/Données[[#This Row],[KILOMÈTRES]])","v":""}]

{"sheet":"Calculs","index":2,"n_rows":69,"n_cols":13,"rows_kept":69,"hidden":true}
["*** Cette feuille doit rester masquée ***"]
[]
[]
[]
[]
[{"$nulls":8},{"$f":"OFFSET(I9,,secondAxis=\"Coût du carburant\")","v":"centime(s) par kilomètre"}]
[{"$nulls":12},2]
[{"$nulls":7},"Voyage","Carburant","Carburant",null,"Second axe :  ",{"$f":"REPT(\"Litre(s) aux 100\",M7=1)&REPT(\"Coût du carburant\",M7=2)","v":"Coût du carburant"}]
[{"$nulls":7},"Kilomètres parcourus","litre(s) aux 100","centime(s) par kilomètre"]
[null,null,"Kilomètres remboursables  ",{"$f":"SUMIFS(Données[KILOMÈTRES],Données[REMBOURSER],\"oui\",Données[DATE],\">=\"&Débutdepériode,Données[DATE],\"<=\"&Findepériode)","v":820},null,1,{"$f":"Débutdepériode","v":"2012-05-01"},{"$f":"SUMIFS(Données[KILOMÈTRES],Données[DATE],G10,Données[ACTIVITÉ],$H$8)","v":162},{"$f":"IFERROR(AVERAGEIFS(Données[litre(s) aux 100],Données[DATE],G10,Données[ACTIVITÉ],$I$8),NA())","v":{"$error":"#N/A"}},{"$f":"IFERROR(AVERAGEIFS(Données[centime(s) par kilomètre],Données[DATE],G10,Données[ACTIVITÉ],$J$8),NA())","v":{"$error":"#N/A"}}]
[null,null,"Remboursement total  ",{"$f":"D10*ReimbursementPerMile/100","v":{"v":442.8,"d":"442.80 €"}},null,2,{"$f":"G10+1","v":"2012-05-02"},{"$f":"SUMIFS(Données[KILOMÈTRES],Données[DATE],G11,Données[ACTIVITÉ],$H$8)","v":183},{"$f":"IFERROR(AVERAGEIFS(Données[litre(s) aux 100],Données[DATE],G11,Données[ACTIVITÉ],$I$8),NA())","v":{"v":58.03571428571429,"d":"58.0"}},{"$f":"IFERROR(AVERAGEIFS(Données[centime(s) par kilomètre],Données[DATE],G11,Données[ACTIVITÉ],$J$8),NA())","v":{"v":8.526153846153846,"d":"8.5"}}]
[{"$nulls":5},3,"2012-05-03",{"$f":"SUMIFS(Données[KILOMÈTRES],Données[DATE],G12,Données[ACTIVITÉ],$H$8)","v":227},{"$f":"IFERROR(AVERAGEIFS(Données[litre(s) aux 100],Données[DATE],G12,Données[ACTIVITÉ],$I$8),NA())","v":{"$error":"#N/A"}},{"$f":"IFERROR(AVERAGEIFS(Données[centime(s) par kilomètre],Données[DATE],G12,Données[ACTIVITÉ],$J$8),NA())","v":{"$error":"#N/A"}}]
[{"$nulls":5},4,"2012-05-04",{"$f":"SUMIFS(Données[KILOMÈTRES],Données[DATE],G13,Données[ACTIVITÉ],$H$8)","v":130},{"$f":"IFERROR(AVERAGEIFS(Données[litre(s) aux 100],Données[DATE],G13,Données[ACTIVITÉ],$I$8),NA())","v":{"v":17.771084337349397,"d":"17.8"}},{"$f":"IFERROR(AVERAGEIFS(Données[centime(s) par kilomètre],Données[DATE],G13,Données[ACTIVITÉ],$J$8),NA())","v":{"v":23.471186440677965,"d":"23.5"}}]
[{"$nulls":5},5,"2012-05-05",{"$f":"SUMIFS(Données[KILOMÈTRES],Données[DATE],G14,Données[ACTIVITÉ],$H$8)","v":0},{"$f":"IFERROR(AVERAGEIFS(Données[litre(s) aux 100],Données[DATE],G14,Données[ACTIVITÉ],$I$8),NA())","v":{"$error":"#N/A"}},{"$f":"IFERROR(AVERAGEIFS(Données[centime(s) par kilomètre],Données[DATE],G14,Données[ACTIVITÉ],$J$8),NA())","v":{"$error":"#N/A"}}]
[{"$nulls":5},6,"2012-05-06",{"$f":"SUMIFS(Données[KILOMÈTRES],Données[DATE],G15,Données[ACTIVITÉ],$H$8)","v":0},{"$f":"IFERROR(AVERAGEIFS(Données[litre(s) aux 100],Données[DATE],G15,Données[ACTIVITÉ],$I$8),NA())","v":{"$error":"#N/A"}},{"$f":"IFERROR(AVERAGEIFS(Données[centime(s) par kilomètre],Données[DATE],G15,Données[ACTIVITÉ],$J$8),NA())","v":{"$error":"#N/A"}}]
[{"$nulls":5},7,"2012-05-07",{"$f":"SUMIFS(Données[KILOMÈTRES],Données[DATE],G16,Données[ACTIVITÉ],$H$8)","v":94},{"$f":"IFERROR(AVERAGEIFS(Données[litre(s) aux 100],Données[DATE],G16,Données[ACTIVITÉ],$I$8),NA())","v":{"$error":"#N/A"}},{"$f":"IFERROR(AVERAGEIFS(Données[centime(s) par kilomètre],Données[DATE],G16,Données[ACTIVITÉ],$J$8),NA())","v":{"$error":"#N/A"}}]
[{"$nulls":5},8,"2012-05-08",{"$f":"SUMIFS(Données[KILOMÈTRES],Données[DATE],G17,Données[ACTIVITÉ],$H$8)","v":0},{"$f":"IFERROR(AVERAGEIFS(Données[litre(s) aux 100],Données[DATE],G17,Données[ACTIVITÉ],$I$8),NA())","v":{"$error":"#N/A"}},{"$f":"IFERROR(AVERAGEIFS(Données[centime(s) par kilomètre],Données[DATE],G17,Données[ACTIVITÉ],$J$8),NA())","v":{"$error":"#N/A"}}]
[{"$nulls":5},9,"2012-05-09",{"$f":"SUMIFS(Données[KILOMÈTRES],Données[DATE],G18,Données[ACTIVITÉ],$H$8)","v":131},{"$f":"IFERROR(AVERAGEIFS(Données[litre(s) aux 100],Données[DATE],G18,Données[ACTIVITÉ],$I$8),NA())","v":{"$error":"#N/A"}},{"$f":"IFERROR(AVERAGEIFS(Données[centime(s) par kilomètre],Données[DATE],G18,Données[ACTIVITÉ],$J$8),NA())","v":{"$error":"#N/A"}}]
[{"$nulls":5},10,"2012-05-10",{"$f":"SUMIFS(Données[KILOMÈTRES],Données[DATE],G19,Données[ACTIVITÉ],$H$8)","v":0},{"$f":"IFERROR(AVERAGEIFS(Données[litre(s) aux 100],Données[DATE],G19,Données[ACTIVITÉ],$I$8),NA())","v":{"$error":"#N/A"}},{"$f":"IFERROR(AVERAGEIFS(Données[centime(s) par kilomètre],Données[DATE],G19,Données[ACTIVITÉ],$J$8),NA())","v":{"$error":"#N/A"}}]
[{"$nulls":5},11,"2012-05-11",{"$f":"SUMIFS(Données[KILOMÈTRES],Données[DATE],G20,Données[ACTIVITÉ],$H$8)","v":0},{"$f":"IFERROR(AVERAGEIFS(Données[litre(s) aux 100],Données[DATE],G20,Données[ACTIVITÉ],$I$8),NA())","v":{"$error":"#N/A"}},{"$f":"IFERROR(AVERAGEIFS(Données[centime(s) par kilomètre],Données[DATE],G20,Données[ACTIVITÉ],$J$8),NA())","v":{"$error":"#N/A"}}]
[{"$nulls":5},12,"2012-05-12",{"$f":"SUMIFS(Données[KILOMÈTRES],Données[DATE],G21,Données[ACTIVITÉ],$H$8)","v":0},{"$f":"IFERROR(AVERAGEIFS(Données[litre(s) aux 100],Données[DATE],G21,Données[ACTIVITÉ],$I$8),NA())","v":{"$error":"#N/A"}},{"$f":"IFERROR(AVERAGEIFS(Données[centime(s) par kilomètre],Données[DATE],G21,Données[ACTIVITÉ],$J$8),NA())","v":{"$error":"#N/A"}}]
[{"$nulls":5},13,"2012-05-13",{"$f":"SUMIFS(Données[KILOMÈTRES],Données[DATE],G22,Données[ACTIVITÉ],$H$8)","v":0},{"$f":"IFERROR(AVERAGEIFS(Données[litre(s) aux 100],Données[DATE],G22,Données[ACTIVITÉ],$I$8),NA())","v":{"$error":"#N/A"}},{"$f":"IFERROR(AVERAGEIFS(Données[centime(s) par kilomètre],Données[DATE],G22,Données[ACTIVITÉ],$J$8),NA())","v":{"$error":"#N/A"}}]
[{"$nulls":5},14,"2012-05-14",{"$f":"SUMIFS(Données[KILOMÈTRES],Données[DATE],G23,Données[ACTIVITÉ],$H$8)","v":0},{"$f":"IFERROR(AVERAGEIFS(Données[litre(s) aux 100],Données[DATE],G23,Données[ACTIVITÉ],$I$8),NA())","v":{"$error":"#N/A"}},{"$f":"IFERROR(AVERAGEIFS(Données[centime(s) par kilomètre],Données[DATE],G23,Données[ACTIVITÉ],$J$8),NA())","v":{"$error":"#N/A"}}]
[{"$nulls":5},15,"2012-05-15",{"$f":"SUMIFS(Données[KILOMÈTRES],Données[DATE],G24,Données[ACTIVITÉ],$H$8)","v":0},{"$f":"IFERROR(AVERAGEIFS(Données[litre(s) aux 100],Données[DATE],G24,Données[ACTIVITÉ],$I$8),NA())","v":{"$error":"#N/A"}},{"$f":"IFERROR(AVERAGEIFS(Données[centime(s) par kilomètre],Données[DATE],G24,Données[ACTIVITÉ],$J$8),NA())","v":{"$error":"#N/A"}}]
[{"$nulls":5},16,"2012-05-16",{"$f":"SUMIFS(Données[KILOMÈTRES],Données[DATE],G25,Données[ACTIVITÉ],$H$8)","v":0},{"$f":"IFERROR(AVERAGEIFS(Données[litre(s) aux 100],Données[DATE],G25,Données[ACTIVITÉ],$I$8),NA())","v":{"$error":"#N/A"}},{"$f":"IFERROR(AVERAGEIFS(Données[centime(s) par kilomètre],Données[DATE],G25,Données[ACTIVITÉ],$J$8),NA())","v":{"$error":"#N/A"}}]
[{"$nulls":5},17,"2012-05-17",{"$f":"SUMIFS(Données[KILOMÈTRES],Données[DATE],G26,Données[ACTIVITÉ],$H$8)","v":0},{"$f":"IFERROR(AVERAGEIFS(Données[litre(s) aux 100],Données[DATE],G26,Données[ACTIVITÉ],$I$8),NA())","v":{"$error":"#N/A"}},{"$f":"IFERROR(AVERAGEIFS(Données[centime(s) par kilomètre],Données[DATE],G26,Données[ACTIVITÉ],$J$8),NA())","v":{"$error":"#N/A"}}]
[{"$nulls":5},18,"2012-05-18",{"$f":"SUMIFS(Données[KILOMÈTRES],Données[DATE],G27,Données[ACTIVITÉ],$H$8)","v":0},{"$f":"IFERROR(AVERAGEIFS(Données[litre(s) aux 100],Données[DATE],G27,Données[ACTIVITÉ],$I$8),NA())","v":{"$error":"#N/A"}},{"$f":"IFERROR(AVERAGEIFS(Données[centime(s) par kilomètre],Données[DATE],G27,Données[ACTIVITÉ],$J$8),NA())","v":{"$error":"#N/A"}}]
[{"$nulls":5},19,"2012-05-19",{"$f":"SUMIFS(Données[KILOMÈTRES],Données[DATE],G28,Données[ACTIVITÉ],$H$8)","v":0},{"$f":"IFERROR(AVERAGEIFS(Données[litre(s) aux 100],Données[DATE],G28,Données[ACTIVITÉ],$I$8),NA())","v":{"$error":"#N/A"}},{"$f":"IFERROR(AVERAGEIFS(Données[centime(s) par kilomètre],Données[DATE],G28,Données[ACTIVITÉ],$J$8),NA())","v":{"$error":"#N/A"}}]
[{"$nulls":5},20,"2012-05-20",{"$f":"SUMIFS(Données[KILOMÈTRES],Données[DATE],G29,Données[ACTIVITÉ],$H$8)","v":0},{"$f":"IFERROR(AVERAGEIFS(Données[litre(s) aux 100],Données[DATE],G29,Données[ACTIVITÉ],$I$8),NA())","v":{"$error":"#N/A"}},{"$f":"IFERROR(AVERAGEIFS(Données[centime(s) par kilomètre],Données[DATE],G29,Données[ACTIVITÉ],$J$8),NA())","v":{"$error":"#N/A"}}]
[{"$nulls":5},21,"2012-05-21",{"$f":"SUMIFS(Données[KILOMÈTRES],Données[DATE],G30,Données[ACTIVITÉ],$H$8)","v":0},{"$f":"IFERROR(AVERAGEIFS(Données[litre(s) aux 100],Données[DATE],G30,Données[ACTIVITÉ],$I$8),NA())","v":{"$error":"#N/A"}},{"$f":"IFERROR(AVERAGEIFS(Données[centime(s) par kilomètre],Données[DATE],G30,Données[ACTIVITÉ],$J$8),NA())","v":{"$error":"#N/A"}}]
[{"$nulls":5},22,"2012-05-22",{"$f":"SUMIFS(Données[KILOMÈTRES],Données[DATE],G31,Données[ACTIVITÉ],$H$8)","v":0},{"$f":"IFERROR(AVERAGEIFS(Données[litre(s) aux 100],Données[DATE],G31,Données[ACTIVITÉ],$I$8),NA())","v":{"$error":"#N/A"}},{"$f":"IFERROR(AVERAGEIFS(Données[centime(s) par kilomètre],Données[DATE],G31,Données[ACTIVITÉ],$J$8),NA())","v":{"$error":"#N/A"}}]
[{"$nulls":5},23,"2012-05-23",{"$f":"SUMIFS(Données[KILOMÈTRES],Données[DATE],G32,Données[ACTIVITÉ],$H$8)","v":0},{"$f":"IFERROR(AVERAGEIFS(Données[litre(s) aux 100],Données[DATE],G32,Données[ACTIVITÉ],$I$8),NA())","v":{"$error":"#N/A"}},{"$f":"IFERROR(AVERAGEIFS(Données[centime(s) par kilomètre],Données[DATE],G32,Données[ACTIVITÉ],$J$8),NA())","v":{"$error":"#N/A"}}]
[{"$nulls":5},24,"2012-05-24",{"$f":"SUMIFS(Données[KILOMÈTRES],Données[DATE],G33,Données[ACTIVITÉ],$H$8)","v":0},{"$f":"IFERROR(AVERAGEIFS(Données[litre(s) aux 100],Données[DATE],G33,Données[ACTIVITÉ],$I$8),NA())","v":{"$error":"#N/A"}},{"$f":"IFERROR(AVERAGEIFS(Données[centime(s) par kilomètre],Données[DATE],G33,Données[ACTIVITÉ],$J$8),NA())","v":{"$error":"#N/A"}}]
[{"$nulls":5},25,"2012-05-25",{"$f":"SUMIFS(Données[KILOMÈTRES],Données[DATE],G34,Données[ACTIVITÉ],$H$8)","v":0},{"$f":"IFERROR(AVERAGEIFS(Données[litre(s) aux 100],Données[DATE],G34,Données[ACTIVITÉ],$I$8),NA())","v":{"$error":"#N/A"}},{"$f":"IFERROR(AVERAGEIFS(Données[centime(s) par kilomètre],Données[DATE],G34,Données[ACTIVITÉ],$J$8),NA())","v":{"$error":"#N/A"}}]
[{"$nulls":5},26,"2012-05-26",{"$f":"SUMIFS(Données[KILOMÈTRES],Données[DATE],G35,Données[ACTIVITÉ],$H$8)","v":0},{"$f":"IFERROR(AVERAGEIFS(Données[litre(s) aux 100],Données[DATE],G35,Données[ACTIVITÉ],$I$8),NA())","v":{"$error":"#N/A"}},{"$f":"IFERROR(AVERAGEIFS(Données[centime(s) par kilomètre],Données[DATE],G35,Données[ACTIVITÉ],$J$8),NA())","v":{"$error":"#N/A"}}]
[{"$nulls":5},27,"2012-05-27",{"$f":"SUMIFS(Données[KILOMÈTRES],Données[DATE],G36,Données[ACTIVITÉ],$H$8)","v":0},{"$f":"IFERROR(AVERAGEIFS(Données[litre(s) aux 100],Données[DATE],G36,Données[ACTIVITÉ],$I$8),NA())","v":{"$error":"#N/A"}},{"$f":"IFERROR(AVERAGEIFS(Données[centime(s) par kilomètre],Données[DATE],G36,Données[ACTIVITÉ],$J$8),NA())","v":{"$error":"#N/A"}}]
[{"$nulls":5},28,"2012-05-28",{"$f":"SUMIFS(Données[KILOMÈTRES],Données[DATE],G37,Données[ACTIVITÉ],$H$8)","v":0},{"$f":"IFERROR(AVERAGEIFS(Données[litre(s) aux 100],Données[DATE],G37,Données[ACTIVITÉ],$I$8),NA())","v":{"$error":"#N/A"}},{"$f":"IFERROR(AVERAGEIFS(Données[centime(s) par kilomètre],Données[DATE],G37,Données[ACTIVITÉ],$J$8),NA())","v":{"$error":"#N/A"}}]
[{"$nulls":5},29,"2012-05-29",{"$f":"SUMIFS(Données[KILOMÈTRES],Données[DATE],G38,Données[ACTIVITÉ],$H$8)","v":0},{"$f":"IFERROR(AVERAGEIFS(Données[litre(s) aux 100],Données[DATE],G38,Données[ACTIVITÉ],$I$8),NA())","v":{"$error":"#N/A"}},{"$f":"IFERROR(AVERAGEIFS(Données[centime(s) par kilomètre],Données[DATE],G38,Données[ACTIVITÉ],$J$8),NA())","v":{"$error":"#N/A"}}]
[{"$nulls":5},30,"2012-05-30",{"$f":"SUMIFS(Données[KILOMÈTRES],Données[DATE],G39,Données[ACTIVITÉ],$H$8)","v":0},{"$f":"IFERROR(AVERAGEIFS(Données[litre(s) aux 100],Données[DATE],G39,Données[ACTIVITÉ],$I$8),NA())","v":{"$error":"#N/A"}},{"$f":"IFERROR(AVERAGEIFS(Données[centime(s) par kilomètre],Données[DATE],G39,Données[ACTIVITÉ],$J$8),NA())","v":{"$error":"#N/A"}}]
[{"$nulls":5},31,"2012-05-31",{"$f":"SUMIFS(Données[KILOMÈTRES],Données[DATE],G40,Données[ACTIVITÉ],$H$8)","v":0},{"$f":"IFERROR(AVERAGEIFS(Données[litre(s) aux 100],Données[DATE],G40,Données[ACTIVITÉ],$I$8),NA())","v":{"$error":"#N/A"}},{"$f":"IFERROR(AVERAGEIFS(Données[centime(s) par kilomètre],Données[DATE],G40,Données[ACTIVITÉ],$J$8),NA())","v":{"$error":"#N/A"}}]
[{"$nulls":5},32,"2012-06-01",{"$f":"SUMIFS(Données[KILOMÈTRES],Données[DATE],G41,Données[ACTIVITÉ],$H$8)","v":0},{"$f":"IFERROR(AVERAGEIFS(Données[litre(s) aux 100],Données[DATE],G41,Données[ACTIVITÉ],$I$8),NA())","v":{"$error":"#N/A"}},{"$f":"IFERROR(AVERAGEIFS(Données[centime(s) par kilomètre],Données[DATE],G41,Données[ACTIVITÉ],$J$8),NA())","v":{"$error":"#N/A"}}]
[{"$nulls":5},33,"2012-06-02",{"$f":"SUMIFS(Données[KILOMÈTRES],Données[DATE],G42,Données[ACTIVITÉ],$H$8)","v":0},{"$f":"IFERROR(AVERAGEIFS(Données[litre(s) aux 100],Données[DATE],G42,Données[ACTIVITÉ],$I$8),NA())","v":{"$error":"#N/A"}},{"$f":"IFERROR(AVERAGEIFS(Données[centime(s) par kilomètre],Données[DATE],G42,Données[ACTIVITÉ],$J$8),NA())","v":{"$error":"#N/A"}}]
[{"$nulls":5},34,{"$f":"G42+1","v":"2012-06-03"},{"$f":"SUMIFS(Données[KILOMÈTRES],Données[DATE],G43,Données[ACTIVITÉ],$H$8)","v":0},{"$f":"IFERROR(AVERAGEIFS(Données[litre(s) aux 100],Données[DATE],G43,Données[ACTIVITÉ],$I$8),NA())","v":{"$error":"#N/A"}},{"$f":"IFERROR(AVERAGEIFS(Données[centime(s) par kilomètre],Données[DATE],G43,Données[ACTIVITÉ],$J$8),NA())","v":{"$error":"#N/A"}}]
[{"$nulls":5},35,"2012-06-04",{"$f":"SUMIFS(Données[KILOMÈTRES],Données[DATE],G44,Données[ACTIVITÉ],$H$8)","v":0},{"$f":"IFERROR(AVERAGEIFS(Données[litre(s) aux 100],Données[DATE],G44,Données[ACTIVITÉ],$I$8),NA())","v":{"$error":"#N/A"}},{"$f":"IFERROR(AVERAGEIFS(Données[centime(s) par kilomètre],Données[DATE],G44,Données[ACTIVITÉ],$J$8),NA())","v":{"$error":"#N/A"}}]
[{"$nulls":5},36,"2012-06-05",{"$f":"SUMIFS(Données[KILOMÈTRES],Données[DATE],G45,Données[ACTIVITÉ],$H$8)","v":0},{"$f":"IFERROR(AVERAGEIFS(Données[litre(s) aux 100],Données[DATE],G45,Données[ACTIVITÉ],$I$8),NA())","v":{"$error":"#N/A"}},{"$f":"IFERROR(AVERAGEIFS(Données[centime(s) par kilomètre],Données[DATE],G45,Données[ACTIVITÉ],$J$8),NA())","v":{"$error":"#N/A"}}]
[{"$nulls":5},37,"2012-06-06",{"$f":"SUMIFS(Données[KILOMÈTRES],Données[DATE],G46,Données[ACTIVITÉ],$H$8)","v":0},{"$f":"IFERROR(AVERAGEIFS(Données[litre(s) aux 100],Données[DATE],G46,Données[ACTIVITÉ],$I$8),NA())","v":{"$error":"#N/A"}},{"$f":"IFERROR(AVERAGEIFS(Données[centime(s) par kilomètre],Données[DATE],G46,Données[ACTIVITÉ],$J$8),NA())","v":{"$error":"#N/A"}}]
[{"$nulls":5},38,"2012-06-07",{"$f":"SUMIFS(Données[KILOMÈTRES],Données[DATE],G47,Données[ACTIVITÉ],$H$8)","v":0},{"$f":"IFERROR(AVERAGEIFS(Données[litre(s) aux 100],Données[DATE],G47,Données[ACTIVITÉ],$I$8),NA())","v":{"$error":"#N/A"}},{"$f":"IFERROR(AVERAGEIFS(Données[centime(s) par kilomètre],Données[DATE],G47,Données[ACTIVITÉ],$J$8),NA())","v":{"$error":"#N/A"}}]
[{"$nulls":5},39,"2012-06-08",{"$f":"SUMIFS(Données[KILOMÈTRES],Données[DATE],G48,Données[ACTIVITÉ],$H$8)","v":0},{"$f":"IFERROR(AVERAGEIFS(Données[litre(s) aux 100],Données[DATE],G48,Données[ACTIVITÉ],$I$8),NA())","v":{"$error":"#N/A"}},{"$f":"IFERROR(AVERAGEIFS(Données[centime(s) par kilomètre],Données[DATE],G48,Données[ACTIVITÉ],$J$8),NA())","v":{"$error":"#N/A"}}]
[{"$nulls":5},40,"2012-06-09",{"$f":"SUMIFS(Données[KILOMÈTRES],Données[DATE],G49,Données[ACTIVITÉ],$H$8)","v":0},{"$f":"IFERROR(AVERAGEIFS(Données[litre(s) aux 100],Données[DATE],G49,Données[ACTIVITÉ],$I$8),NA())","v":{"$error":"#N/A"}},{"$f":"IFERROR(AVERAGEIFS(Données[centime(s) par kilomètre],Données[DATE],G49,Données[ACTIVITÉ],$J$8),NA())","v":{"$error":"#N/A"}}]
[{"$nulls":5},41,"2012-06-10",{"$f":"SUMIFS(Données[KILOMÈTRES],Données[DATE],G50,Données[ACTIVITÉ],$H$8)","v":0},{"$f":"IFERROR(AVERAGEIFS(Données[litre(s) aux 100],Données[DATE],G50,Données[ACTIVITÉ],$I$8),NA())","v":{"$error":"#N/A"}},{"$f":"IFERROR(AVERAGEIFS(Données[centime(s) par kilomètre],Données[DATE],G50,Données[ACTIVITÉ],$J$8),NA())","v":{"$error":"#N/A"}}]
[{"$nulls":5},42,"2012-06-11",{"$f":"SUMIFS(Données[KILOMÈTRES],Données[DATE],G51,Données[ACTIVITÉ],$H$8)","v":0},{"$f":"IFERROR(AVERAGEIFS(Données[litre(s) aux 100],Données[DATE],G51,Données[ACTIVITÉ],$I$8),NA())","v":{"$error":"#N/A"}},{"$f":"IFERROR(AVERAGEIFS(Données[centime(s) par kilomètre],Données[DATE],G51,Données[ACTIVITÉ],$J$8),NA())","v":{"$error":"#N/A"}}]
[{"$nulls":5},43,"2012-06-12",{"$f":"SUMIFS(Données[KILOMÈTRES],Données[DATE],G52,Données[ACTIVITÉ],$H$8)","v":0},{"$f":"IFERROR(AVERAGEIFS(Données[litre(s) aux 100],Données[DATE],G52,Données[ACTIVITÉ],$I$8),NA())","v":{"$error":"#N/A"}},{"$f":"IFERROR(AVERAGEIFS(Données[centime(s) par kilomètre],Données[DATE],G52,Données[ACTIVITÉ],$J$8),NA())","v":{"$error":"#N/A"}}]
[{"$nulls":5},44,"2012-06-13",{"$f":"SUMIFS(Données[KILOMÈTRES],Données[DATE],G53,Données[ACTIVITÉ],$H$8)","v":0},{"$f":"IFERROR(AVERAGEIFS(Données[litre(s) aux 100],Données[DATE],G53,Données[ACTIVITÉ],$I$8),NA())","v":{"$error":"#N/A"}},{"$f":"IFERROR(AVERAGEIFS(Données[centime(s) par kilomètre],Données[DATE],G53,Données[ACTIVITÉ],$J$8),NA())","v":{"$error":"#N/A"}}]
[{"$nulls":5},45,"2012-06-14",{"$f":"SUMIFS(Données[KILOMÈTRES],Données[DATE],G54,Données[ACTIVITÉ],$H$8)","v":0},{"$f":"IFERROR(AVERAGEIFS(Données[litre(s) aux 100],Données[DATE],G54,Données[ACTIVITÉ],$I$8),NA())","v":{"$error":"#N/A"}},{"$f":"IFERROR(AVERAGEIFS(Données[centime(s) par kilomètre],Données[DATE],G54,Données[ACTIVITÉ],$J$8),NA())","v":{"$error":"#N/A"}}]
[{"$nulls":5},46,"2012-06-15",{"$f":"SUMIFS(Données[KILOMÈTRES],Données[DATE],G55,Données[ACTIVITÉ],$H$8)","v":0},{"$f":"IFERROR(AVERAGEIFS(Données[litre(s) aux 100],Données[DATE],G55,Données[ACTIVITÉ],$I$8),NA())","v":{"$error":"#N/A"}},{"$f":"IFERROR(AVERAGEIFS(Données[centime(s) par kilomètre],Données[DATE],G55,Données[ACTIVITÉ],$J$8),NA())","v":{"$error":"#N/A"}}]
[{"$nulls":5},47,"2012-06-16",{"$f":"SUMIFS(Données[KILOMÈTRES],Données[DATE],G56,Données[ACTIVITÉ],$H$8)","v":0},{"$f":"IFERROR(AVERAGEIFS(Données[litre(s) aux 100],Données[DATE],G56,Données[ACTIVITÉ],$I$8),NA())","v":{"$error":"#N/A"}},{"$f":"IFERROR(AVERAGEIFS(Données[centime(s) par kilomètre],Données[DATE],G56,Données[ACTIVITÉ],$J$8),NA())","v":{"$error":"#N/A"}}]
[{"$nulls":5},48,"2012-06-17",{"$f":"SUMIFS(Données[KILOMÈTRES],Données[DATE],G57,Données[ACTIVITÉ],$H$8)","v":0},{"$f":"IFERROR(AVERAGEIFS(Données[litre(s) aux 100],Données[DATE],G57,Données[ACTIVITÉ],$I$8),NA())","v":{"$error":"#N/A"}},{"$f":"IFERROR(AVERAGEIFS(Données[centime(s) par kilomètre],Données[DATE],G57,Données[ACTIVITÉ],$J$8),NA())","v":{"$error":"#N/A"}}]
[{"$nulls":5},49,"2012-06-18",{"$f":"SUMIFS(Données[KILOMÈTRES],Données[DATE],G58,Données[ACTIVITÉ],$H$8)","v":0},{"$f":"IFERROR(AVERAGEIFS(Données[litre(s) aux 100],Données[DATE],G58,Données[ACTIVITÉ],$I$8),NA())","v":{"$error":"#N/A"}},{"$f":"IFERROR(AVERAGEIFS(Données[centime(s) par kilomètre],Données[DATE],G58,Données[ACTIVITÉ],$J$8),NA())","v":{"$error":"#N/A"}}]
[{"$nulls":5},50,"2012-06-19",{"$f":"SUMIFS(Données[KILOMÈTRES],Données[DATE],G59,Données[ACTIVITÉ],$H$8)","v":0},{"$f":"IFERROR(AVERAGEIFS(Données[litre(s) aux 100],Données[DATE],G59,Données[ACTIVITÉ],$I$8),NA())","v":{"$error":"#N/A"}},{"$f":"IFERROR(AVERAGEIFS(Données[centime(s) par kilomètre],Données[DATE],G59,Données[ACTIVITÉ],$J$8),NA())","v":{"$error":"#N/A"}}]
[{"$nulls":5},51,"2012-06-20",{"$f":"SUMIFS(Données[KILOMÈTRES],Données[DATE],G60,Données[ACTIVITÉ],$H$8)","v":0},{"$f":"IFERROR(AVERAGEIFS(Données[litre(s) aux 100],Données[DATE],G60,Données[ACTIVITÉ],$I$8),NA())","v":{"$error":"#N/A"}},{"$f":"IFERROR(AVERAGEIFS(Données[centime(s) par kilomètre],Données[DATE],G60,Données[ACTIVITÉ],$J$8),NA())","v":{"$error":"#N/A"}}]
[{"$nulls":5},52,"2012-06-21",{"$f":"SUMIFS(Données[KILOMÈTRES],Données[DATE],G61,Données[ACTIVITÉ],$H$8)","v":0},{"$f":"IFERROR(AVERAGEIFS(Données[litre(s) aux 100],Données[DATE],G61,Données[ACTIVITÉ],$I$8),NA())","v":{"$error":"#N/A"}},{"$f":"IFERROR(AVERAGEIFS(Données[centime(s) par kilomètre],Données[DATE],G61,Données[ACTIVITÉ],$J$8),NA())","v":{"$error":"#N/A"}}]
[{"$nulls":5},53,"2012-06-22",{"$f":"SUMIFS(Données[KILOMÈTRES],Données[DATE],G62,Données[ACTIVITÉ],$H$8)","v":0},{"$f":"IFERROR(AVERAGEIFS(Données[litre(s) aux 100],Données[DATE],G62,Données[ACTIVITÉ],$I$8),NA())","v":{"$error":"#N/A"}},{"$f":"IFERROR(AVERAGEIFS(Données[centime(s) par kilomètre],Données[DATE],G62,Données[ACTIVITÉ],$J$8),NA())","v":{"$error":"#N/A"}}]
[{"$nulls":5},54,"2012-06-23",{"$f":"SUMIFS(Données[KILOMÈTRES],Données[DATE],G63,Données[ACTIVITÉ],$H$8)","v":0},{"$f":"IFERROR(AVERAGEIFS(Données[litre(s) aux 100],Données[DATE],G63,Données[ACTIVITÉ],$I$8),NA())","v":{"$error":"#N/A"}},{"$f":"IFERROR(AVERAGEIFS(Données[centime(s) par kilomètre],Données[DATE],G63,Données[ACTIVITÉ],$J$8),NA())","v":{"$error":"#N/A"}}]
[{"$nulls":5},55,"2012-06-24",{"$f":"SUMIFS(Données[KILOMÈTRES],Données[DATE],G64,Données[ACTIVITÉ],$H$8)","v":0},{"$f":"IFERROR(AVERAGEIFS(Données[litre(s) aux 100],Données[DATE],G64,Données[ACTIVITÉ],$I$8),NA())","v":{"$error":"#N/A"}},{"$f":"IFERROR(AVERAGEIFS(Données[centime(s) par kilomètre],Données[DATE],G64,Données[ACTIVITÉ],$J$8),NA())","v":{"$error":"#N/A"}}]
[{"$nulls":5},56,"2012-06-25",{"$f":"SUMIFS(Données[KILOMÈTRES],Données[DATE],G65,Données[ACTIVITÉ],$H$8)","v":0},{"$f":"IFERROR(AVERAGEIFS(Données[litre(s) aux 100],Données[DATE],G65,Données[ACTIVITÉ],$I$8),NA())","v":{"$error":"#N/A"}},{"$f":"IFERROR(AVERAGEIFS(Données[centime(s) par kilomètre],Données[DATE],G65,Données[ACTIVITÉ],$J$8),NA())","v":{"$error":"#N/A"}}]
[{"$nulls":5},57,"2012-06-26",{"$f":"SUMIFS(Données[KILOMÈTRES],Données[DATE],G66,Données[ACTIVITÉ],$H$8)","v":0},{"$f":"IFERROR(AVERAGEIFS(Données[litre(s) aux 100],Données[DATE],G66,Données[ACTIVITÉ],$I$8),NA())","v":{"$error":"#N/A"}},{"$f":"IFERROR(AVERAGEIFS(Données[centime(s) par kilomètre],Données[DATE],G66,Données[ACTIVITÉ],$J$8),NA())","v":{"$error":"#N/A"}}]
[{"$nulls":5},58,"2012-06-27",{"$f":"SUMIFS(Données[KILOMÈTRES],Données[DATE],G67,Données[ACTIVITÉ],$H$8)","v":0},{"$f":"IFERROR(AVERAGEIFS(Données[litre(s) aux 100],Données[DATE],G67,Données[ACTIVITÉ],$I$8),NA())","v":{"$error":"#N/A"}},{"$f":"IFERROR(AVERAGEIFS(Données[centime(s) par kilomètre],Données[DATE],G67,Données[ACTIVITÉ],$J$8),NA())","v":{"$error":"#N/A"}}]
[{"$nulls":5},59,"2012-06-28",{"$f":"SUMIFS(Données[KILOMÈTRES],Données[DATE],G68,Données[ACTIVITÉ],$H$8)","v":0},{"$f":"IFERROR(AVERAGEIFS(Données[litre(s) aux 100],Données[DATE],G68,Données[ACTIVITÉ],$I$8),NA())","v":{"$error":"#N/A"}},{"$f":"IFERROR(AVERAGEIFS(Données[centime(s) par kilomètre],Données[DATE],G68,Données[ACTIVITÉ],$J$8),NA())","v":{"$error":"#N/A"}}]
[{"$nulls":5},60,"2012-06-29",{"$f":"SUMIFS(Données[KILOMÈTRES],Données[DATE],G69,Données[ACTIVITÉ],$H$8)","v":0},{"$f":"IFERROR(AVERAGEIFS(Données[litre(s) aux 100],Données[DATE],G69,Données[ACTIVITÉ],$I$8),NA())","v":{"$error":"#N/A"}},{"$f":"IFERROR(AVERAGEIFS(Données[centime(s) par kilomètre],Données[DATE],G69,Données[ACTIVITÉ],$J$8),NA())","v":{"$error":"#N/A"}}]